Cogmind - Beta 9.3 @@@ ROGUE MODE // 2019.12.17 @ 18:55:09 // Winter2019/RPGLIKE Player: Exeight Result: Destroyed by YI-UF0 with YI-UF0's Doublenader Performance ------------- Evolutions (0) 0 Regions Visited (2) 400 Robots Destroyed (23) 115 Value Destroyed (404) 404 Prototype IDs (0) 0 Alien Tech Used (0) 0 Bonus (0) 0 TOTAL SCORE: 919 Bonus ------- None Cogmind --------- Core Integrity 0/600 Matter 52/300 Energy 90/100 System Corruption 0% Temperature Cool (0) Movement Core (100) Ox1 Location -10/Mines Parts ------- > --- POWER (1) -------- (None) > --- PROPULSION (2) --- Flight Unit > --- UTILITY (2) ------ Sensor Array Signal Interpreter > --- WEAPON (1) ------- Heavy Assault Rifle > --- INVENTORY (3) ---- (None) Peak State ------------ > --- POWER ------------ Light Ion Engine > --- PROPULSION ------- Flight Unit Flight Unit > --- UTILITY ---------- Sensor Array Signal Interpreter > --- WEAPON ----------- Grenade Launcher > --- INVENTORY -------- Heavy Assault Rifle [Rating: 6] Favorites ----------- Power Light Ion Engine Engine Light Ion Engine Propulsion Hover Unit Leg Aluminum Leg Hover Unit Hover Unit Flight Unit Flight Unit Utility Sensor Array Device Sensor Array Processor Signal Interpreter Weapon Heavy Assault Rifle Ballistic Gun Heavy Assault Rifle Launcher Grenade Launcher Build | -11 -10 -10 ------- Run | Scr Mat Min Slots Evolved 2 | . . 2 Power . | . . . Propulsion 1 | . . 1 Utility 1 | . . 1 Weapon . | . . . Parts Attached 19 | 3 12 4 Power 2 | 1 1 . Engine 2 | 1 1 . Core . | . . . Reactor . | . . . Propulsion 5 | 1 2 2 Treads . | . . . Leg 1 | 1 . . Wheel . | . . . Hover 2 | . 2 . Flight 2 | . . 2 Utility 3 | . 2 1 Device 2 | . 2 . Storage . | . . . Processor 1 | . . 1 Hackware . | . . . Protection . | . . . Artifact . | . . . Weapon 9 | 1 7 1 Energy Gun . | . . . Energy Cannon . | . . . Ballistic Gun 7 | 1 5 1 Ballistic Cannon . | . . . Launcher 2 | . 2 . Special Weapon . | . . . Impact Weapon . | . . . Slashing Weapon . | . . . Piercing Weapon . | . . . Special Melee Weapon . | . . . Unidentified Prototypes . | . . . Parts Lost 3 | . . 3 Power 1 | . . 1 Propulsion 1 | . . 1 Utility . | . . . Weapon 1 | . . 1 Highest Loss Streak 3 | . . 3 Average Slot Usage (%) 81 | . 85 69 Engine 22 | . 25 15 Leg 6 | . 8 . Hover 10 | . 14 . Flight 1 | . . 4 Device 13 | . 12 16 Processor 4 | . . 14 Ballistic Gun 17 | . 24 . Launcher 5 | . . 15 Naked Turns . | . . . Heaviest Build 8 | 6 8 7 Greatest Support 10 | 10 10 8 Greatest Overweight (x) 2 | . 2 2 Average Overweight (x) . | . . 1 Largest Inventory Capacity 3 | . 2 3 Average Capacity 2 | . 1 2 Most Carried 3 | . 2 3 Average Carried 1 | . 1 1 Final Capacity 3 | . 2 3 Final Carried 2 | . 2 . Class Distribution -------------------- 79% | Hacker-Mutant 20% | Mutant Dominant Class ---------------- Hacker-Mutant | -10/Materials Hacker-Mutant | -10/Mines Resources | -11 -10 -10 ----------- Run | Scr Mat Min Matter Collected 523 | 223 243 57 Remotely . | . . . Salvage Created 498 | . 424 74 Parts 48 | . 42 6 Haulers Intercepted 2 | . 2 . Recyclers Shooed 1 | . 1 . Parts Field Recycled . | . . . Retrieved Matter . | . . . Parts Self-Destructed . | . . . Prevented . | . . . Kills | -11 -10 -10 ------- Run | Scr Mat Min Combat Hostiles Destroyed 15 | . 10 5 Guns 10 | . 10 . AOE 5 | . . 5 Classes Destroyed 7 | . 6 1 Worker 1 | . . 1 Builder 1 | . 1 . Hauler 2 | . 2 . Recycler 1 | . 1 . Watcher 3 | . 3 . Swarmer 9 | . 6 3 Grunt 6 | . 4 2 Best Kill Streak 3 | . 3 3 Combat Bots Only 3 | . 3 3 Max Kills in Single Turn 2 | . 1 2 Gunslinging . | . . . Exploded 2 | . . 2 Melee . | . . . Uniques/NPCs Destroyed . | . . . Combat | -11 -10 -10 -------- Run | Scr Mat Min Damage Taken 966 | . 377 589 Core 800 | . 314 486 Absorbed by Shields . | . . . Redirected to Core 529 | . 196 333 Core Remaining (%) 100 | 100 . . Volleys Fired 90 | . 71 19 Largest 1 | . 1 1 Hottest 30 | . 30 30 Shots Fired 90 | . 71 19 Gun 72 | . 70 2 Cannon . | . . . Launcher 18 | . 1 17 Special . | . . . Kinetic 72 | . 70 2 Thermal . | . . . Explosive 18 | . 1 17 Electromagnetic . | . . . Robot Hit Streak 7 | . 7 5 Robot Miss Streak 8 | . 8 3 Penetration Max . | . . . Secondary Targets . | . . . Shots Hit Robots 40 | . 37 3 Core Hits 33 | . 19 14 Critical Hits . | . . . Critical Kills . | . . . Critical Parts Destroyed . | . . . Melee Attacks . | . . . Impact . | . . . Slashing . | . . . Piercing . | . . . Sneak Attacks . | . . . Combat Hostiles . | . . . Follow-up Attacks . | . . . Damage Inflicted 1060 | . 650 410 Guns 617 | . 617 . Cannons . | . . . Explosions 443 | . 33 410 Melee . | . . . Ramming . | . . . Kinetic 617 | . 617 . Thermal . | . . . Explosive 443 | . 33 410 Electromagnetic . | . . . Impact . | . . . Slashing . | . . . Piercing . | . . . Highest Corruption . | . . . Average Corruption . | . . . Corruption Purged . | . . . Overload Shots . | . . . Overflow Damage 6 | . . 6 Projectiles . | . . . Explosions 6 | . . 6 Melee . | . . . Knockbacks . | . . . Impact . | . . . Kinetic . | . . . Secondary . | . . . Self-Inflicted Damage 21 | . . 21 Shots 1 | . . 1 Rammed . | . . . Targets Rammed . | . . . Kicked . | . . . Crushed . | . . . Highest Temperature 4 | . . 4 Average Temperature 4 | . . 4 Received Heat Transfer 114 | . 96 18 Siege Activations . | . . . Robots Corrupted . | . . . Combat Hostiles . | . . . Parts Fried . | . . . Impact Corruptions . | . . . Robots Melted . | . . . Combat Hostiles . | . . . Parts Melted . | . . . Heat Transferred . | . . . Parts Sabotaged . | . . . Parts Stolen . | . . . Parts Stripped . | . . . Power Chain Reactions . | . . . Missiles Intercepted . | . . . Alert | -11 -10 -10 ------- Run | Scr Mat Min Peak Influence 196 | . 196 121 Average Influence 50 | . 67 11 Maximum Alert Level . | . . . Low Security (%) 100 | 100 100 100 Level 1 . | . . . Level 2 . | . . . Level 3 . | . . . Level 4 . | . . . Level 5 . | . . . High Security . | . . . Max Security . | . . . Squads Dispatched . | . . . Investigation . | . . . Extermination . | . . . Reinforcement . | . . . Assault . | . . . Garrison . | . . . Intercept . | . . . Construction Impeded . | . . . Haulers Reinforced . | . . . Stealth | -11 -10 -10 --------- Run | Scr Mat Min Distress Signals . | . . . Communications Jammed . | . . . Distress Signals . | . . . Times Spotted 30 | . 24 6 Peak Tracking Total 4 | . 4 3 Tactical Retreats 1 | . 1 . Traps | -11 -10 -10 ------- Run | Scr Mat Min Traps Triggered 4 | . 4 . Indirectly . | . . . Trap Hack Attempts . | . . . Triggered . | . . . Disarmed 4 | . 4 . Reprogrammed . | . . . Reused . | . . . Traps Extracted . | . . . Installed . | . . . Triggered . | . . . Machines | -11 -10 -10 ---------- Run | Scr Mat Min Machines Disabled 2 | . 1 1 Max in Single Turn 1 | . 1 1 Machines Sabotaged . | . . . Garrisons Compromised . | . . . Overloaded Fab Kills . | . . . Fab Network Shutdowns . | . . . Hacking | -11 -10 -10 --------- Run | Scr Mat Min Machines Accessed 7 | . 7 . Terminals 6 | . 6 . Fabricators . | . . . Repair Stations . | . . . Recycling Units 1 | . 1 . Scanalyzers . | . . . Garrison Access . | . . . Total Hacks 16 | . 16 . Successful 11 | . 11 . Failed 5 | . 5 . Catastrophic . | . . . Database Lockouts . | . . . Manual 13 | . 13 . Terminals 14 | . 14 . Fabricators . | . . . Repair Stations . | . . . Recycling Units 2 | . 2 . Scanalyzers . | . . . Garrison Access . | . . . Terminal Hacks 4 | . 4 . Terminal Index 2 | . 2 . Disarm Traps 1 | . 1 . Zone Layout 1 | . 1 . Fabricator Hacks . | . . . Repair Station Hacks . | . . . Recycling Unit Hacks 2 | . 2 . Report Inventory 1 | . 1 . Retrieve Components 1 | . 1 . Scanalyzer . | . . . Garrison Access Hacks . | . . . Unauthorized Hacks 10 | . 10 . Terminals 5 | . 5 . Track 5 | . 5 . Fabricators . | . . . Repair Stations . | . . . Recycling Units . | . . . Scanalyzers . | . . . Garrison Access . | . . . Data Cores Recovered . | . . . Used . | . . . Hacking Detections 4 | . 4 . Full Trace Events . | . . . Feedback Events . | . . . Feedback Blocked . | . . . Robot Schematics Acquired . | . . . Robots Built . | . . . Matter . | . . . Time . | . . . Total Robot Build Rating . | . . . Part Schematics Acquired . | . . . Parts Built . | . . . Matter . | . . . Time . | . . . Total Part Build Rating . | . . . Parts Repaired . | . . . Time . | . . . Parts Recycled . | . . . Recycled Matter . | . . . Retrieved Matter . | . . . Retrieved Components 10 | . 10 . Parts Scanalyzed . | . . . Part Schematics Acquired . | . . . Parts Damaged . | . . . Bothacking | -11 -10 -10 ------------ Run | Scr Mat Min Used RIF Installer . | . . . Robots Hacked . | . . . Non-combat . | . . . Combat . | . . . Robot Hacks Applied . | . . . Relay Couplers Released . | . . . Robots Rewired . | . . . Allies Hacked . | . . . Hacks Repelled . | . . . Allies | -11 -10 -10 -------- Run | Scr Mat Min Total Allies . | . . . Largest Group . | . . . Highest-Rated Group . | . . . Highest-Rated Ally . | . . . Total Orders . | . . . Ally Attacks . | . . . Total Damage . | . . . Kills . | . . . Allies Corrupted . | . . . Allies Melted . | . . . Intel | -11 -10 -10 ------- Run | Scr Mat Min Robot Analysis Total . | . . . Derelict Logs Recovered 1 | . . 1 Drone Launches . | . . . Drone Recoveries . | . . . Exploration | -11 -10 -10 ------------- Run | Scr Mat Min Turns Passed 1889 | 54 1323 512 Spaces Moved 1359 | 44 947 368 Core 317 | 3 53 261 Treads . | . . . Legs 349 | 41 308 . Wheels . | . . . Hover 586 | . 586 . Flight 107 | . . 107 Fastest Speed 37 | 50 60 37 Average Speed 111 | 115 109 117 Slowest Speed 150 | 120 150 150 Overloaded Moves . | . . . Propulsion Burnouts . | . . . Robots Hopped 1 | . . 1 Cave-ins Triggered . | . . . Exploration Rate (%) 60 | 3 99 78 Regions Visited 2 Branch Regions 1 Pre-discovered Areas . | . . . Known Exits Taken . | . . . Unknown Exits Taken 2 | 1 1 . Scrap Searched 1 | . . 1 Spaces Dug 15 | . . 15 Terrain Destroyed 71 | . 5 66 Melee . | . . . Projectile . | . . . AOE 71 | . 5 66 Actions | -11 -10 -10 --------- Run | Scr Mat Min Total 1634 | 46 1158 430 Wait 148 | . 110 38 Move 1355 | 43 946 366 Hop 1 | . . 1 Pick Up 5 | . 3 2 Fast Attach 11 | 3 8 . Attach 4 | . . 4 Detach . | . . . Swap 4 | . 4 . Drop 4 | . 4 . Fire 90 | . 71 19 Melee . | . . . Ram . | . . . Kick . | . . . Crush . | . . . Escape Stasis . | . . . Rewire . | . . . Trap . | . . . Miscellaneous 12 | . 12 . Route ------- -11/Scrapyard -10/Materials (discovered 4 exits: *Mat x3 / [*Min]) -10/Mines (discovered 2 exits: *Mat x2) History --------- Turn | Location | Event 2 | -11/Scrapyard | Discovered new exit (range 16) 55 | -11/Scrapyard | Entered Materials 318 | -10/Materials | Build established: Mutant 473 | -10/Materials | Discovered new exit (range 11) 627 | -10/Materials | Discovered new exit (range 13) 706 | -10/Materials | Build established: Hacker-Mutant 939 | -10/Materials | Discovered new exit (range 9) 1153 | -10/Materials | Discovered new exit (range 14) 1378 | -10/Materials | Entered Mines 1380 | -10/Mines | Reached level 2 1380 | -10/Mines | Upgraded with Propulsion slot (x1) 1380 | -10/Mines | Upgraded with Utility slot (x1) 1395 | -10/Mines | Learned Materials terminal intel 1457 | -10/Mines | Assisted by bots powering up and referring to "LRC-V3" 1632 | -10/Mines | Discovered new exit (range 7) 1641 | -10/Mines | Identified exit to Materials 1815 | -10/Mines | Discovered exit to Materials (range 12) 1871 | -10/Mines | Core integrity fell below 50% 1885 | -10/Mines | Core integrity fell below 20% 1890 | -10/Mines | Destroyed by YI-UF0 with YI-UF0's Doublenader Last Messages --------------- K-01 Serf collects debris. U-05 Engineer lays Concrete. R-06 Scavenger collects Lgt. Assault Rifle. U-05 Engineer lays Concrete. EXIT=FOUND: MATERIALS K-01 Serf collects debris. U-05 Engineer lays Concrete. K-01 Serf collects debris. Flight Unit destroyed. The unstable cave ceiling collapses. YI-UF0 mumbles something. The unstable cave ceiling collapses. YI-UF0 mumbles something. The unstable cave ceiling collapses. YI-UF0 mumbles something. The unstable cave ceiling collapses. YI-UF0 mumbles something. Grenade Launcher destroyed. Lgt. Ion Engine destroyed. The unstable cave ceiling collapses. Map ----- +----------------------------------------------------+ | | | | | | | | | | | | | | | | | | | ??????????????????????????????????? | | ??????????????????????????????????? | | ??????????????????????????????????? | | ??????????????????????????????????? | | ??????????????????????????????????? | | ??????????????????????##########??? | | ??????????????????????# #??? | | ??????????????????????# #??? | | ??????????????????????# #??? | | ??????????????????????# ##?? | | ???????????####?###???# ##?? | | ?????????### # ##?# #?? | | ?????????? ## #?? | | ????????"" "" ##? | | ??????? " # #? | | ??????? " #? | | ?????? @ # #? | | ?????? g #? | | ?????? #? | | ??????? ## #? | | ????????# # # # # ##? | | ????????# ## #### #####?? | | ?????????# # ### #??? | | ?????????# %= ## #??? | | ????????## # ## ##??? | | ???####?# # r ## ##???? | | ??## ### # ##???? | | ### #=! # #???? | | =% # ##??? | | # ! #??? | | #??? | | # # ## ##??? | | ## ## ######???? | | ## ### ## #????????? | | ## ##?##### #????????? | | ## ######## ###????????? | | ### #??????????? | | ??# = ##########??????????? | | ??# #???????????????????? | | ??### ##??????????????????? | | ????## ]##?????????????????? | +----------------------------------------------------+ Best States ------------- Heat Dissipation 25 Energy Generation 10 Energy Capacity 250 Matter Stores 300 Matter Capacity 300 Sight Range 16 Robot Scan Range 10 Terrain Scan Density 10 Evasion (%) 62 Offensive Hacking 20 Item Schematics ----------------- None Robot Schematics ------------------ None Fabricated ------------ Nothing Alien Tech Used ----------------- None Achievements -------------- None Challenges ------------ None RPGLIKE | -11 -10 -10 --------- Run | Scr Mat Min Levels Raised 1 | . . 1 XP Earned 5575 | 3000 1400 1175 XP Spent 4500 | . 2750 1750 Upgrades 9 | . 6 3 Propulsion Slot 1 | . . 1 Utility Slot 1 | . . 1 Inventory Capacity 3 | . 2 1 Hack Attack % 4 | . 4 . Protomatter Created 146 | . 146 . Integrity Restored 214 | . 214 . Core 200 | . 200 . Parts 14 | . 14 . Protomatter Decayed 74 | . 74 . Game ------ Seed ReactionNetworkThrusters Manual? 0 Play Time 00:30:23 Cumulative 25.6 hours Start 2019.12.17 @ 17:50:36 End 2019.12.17 @ 18:55:09 Sessions 1 Manual Loads 0 Difficulty Rogue Special Mode Winter2019/RPGLIKE Game No. 36 Rogue 36 Adventurer 0 Explorer 0 Win Type - Total 0 Types 0/0/0/0/0/0/0 Lore% 13 Gallery% 19 Achievement% 19 Wizard Run 0 Options --------- ASCII 0 Keyboard 0 Movement Mouse Keybinds 0 Fullscreen 0 Font 28/SmallcapsGlow Map View 76x50 Tactical HUD 0 Map Filters NONE Filters NONE Steam 1 RUN: 444ee005-ae8c-40a3-ad59-b853a9ecf709